bitfinex-derivatives/quotes_SOLF0:USTF0_20250228
["timestamp","ask_amount","ask_price","bid_price","bid_amount"]
[1740704782320,7.39081798,136.27,136.24,0.05213149]
[1740704786525,0.04671798,136.27,136.24,0.05213149]
[1740704787724,7.3451,136.25,136.24,0.05213149]
[1740704795729,7.39091798,136.27,136.24,0.05213149]
[1740704797228,7.39091798,136.27,136.24,7.39743149]
[1740704797826,7.39091798,136.27,136.24,0.05213149]
[1740704798027,0.04671798,136.27,136.24,0.05213149]
[1740704798226,7.3451,136.25,136.24,0.05213149]
[1740704802227,0.04671798,136.27,136.16,3.9561]
[1740704802432,36.7061,136.29,136.16,3.9561]
[1740704802731,1.30613708,136.28,136.16,3.9561]
[1740704802921,7.3493,136.18,136.16,3.9561]
[1740704803331,7.39788316,136.18,136.16,4.00425528]
[1740704803533,0.04858316,136.18,136.16,4.00425528]
[1740704804828,7.39778316,136.18,136.16,2.00075528]
[1740704805030,7.39778316,136.18,136.16,0.04815528]
[1740704805331,7.39768316,136.18,136.16,0.04815528]
[1740704805721,0.04858316,136.18,136.16,0.04815528]
[1740704806524,11.54,136.23,136.16,0.04815528]
[1740704806932,224.56,136.28,136.2,7.3475]
[1740704807127,224.56,136.28,136.16,0.04815528]
[1740704807128,22.02,136.32,136.17,3.9925]
[1740704807333,22.02,136.3,136.17,3.9925]
[1740704807526,39.66563505,136.29,136.17,3.9925]
[1740704807723,0.05026631,136.25,136.22,0.04722829]
[1740704808331,0.05026631,136.25,136.23,7.3462]
[1740704808629,0.05026631,136.25,136.22,0.04722829]
[1740704809232,0.05026631,136.25,136.24,7.3457]
[1740704809630,0.05026631,136.25,136.22,0.04722829]
[1740704811137,0.05026631,136.25,136.24,7.3457]
[1740704811732,0.05026631,136.25,136.22,0.04722829]
[1740704812232,0.05026631,136.25,136.23,7.3459]
[1740704812436,0.05026631,136.25,136.22,0.04722829]
[1740704812839,0.05026631,136.25,136.22,7.39372829]
[1740704813641,0.05026631,136.25,136.22,0.04722829]
[1740704814741,0.05026631,136.25,136.22,7.39352829]
[1740704815338,7.39576631,136.25,136.22,0.04722829]
[1740704816439,7.3459,136.24,136.22,0.04722829]
[1740704816638,0.05026631,136.25,136.22,0.04722829]
[1740704817042,7.3462,136.23,136.22,0.04722829]
[1740704817443,0.05026631,136.25,136.22,0.04722829]
[1740704817847,0.05026631,136.25,136.22,7.39352829]
[1740704818143,0.05026631,136.25,136.22,0.04722829]
[1740704818349,0.05026631,136.25,136.22,7.39372829]
[1740704818552,0.05026631,136.25,136.22,0.04722829]
[1740704818854,0.05026631,136.25,136.23,7.3461]
[1740704820747,0.05026631,136.25,136.24,7.3457]
[1740704821754,0.05026631,136.25,136.22,0.04722829]
[1740704821950,0.05026631,136.25,136.23,7.346]
[1740704826652,7.39576631,136.25,136.22,0.04722829]
[1740704827255,7.3462,136.23,136.22,0.04722829]
[1740704842052,0.05026631,136.25,136.22,0.04722829]
[1740704842663,7.3462,136.23,136.22,0.04722829]
[1740704848371,44.04,136.23,136.12,18.48745874]
[1740704848571,36.76146631,136.25,136.12,18.48745874]
[1740704848572,22.02,136.21,136.12,18.48745874]
[1740704848772,22.02,136.21,136.13,18.48745874]
[1740704848969,7.351,136.15,136.13,18.48745874]
[1740704849271,44.04,136.21,136.13,18.48745874]
[1740704849461,7.3511,136.14,136.13,18.53708518]
[1740704849767,7.3511,136.14,136.13,0.04962644]
[1740704850068,0.05462423,136.15,136.13,0.04962644]
[1740704850272,22.02,136.21,136.13,0.04962644]
[1740704850463,0.05528868,136.18,136.13,0.04962644]
[1740704850661,0.05528868,136.18,136.11,5.9391]
[1740704850865,0.05528868,136.18,136.14,0.05535401]
[1740704851570,21.45640876,136.22,136.16,7.3496]
[1740704851866,9.91640876,136.22,136.11,5.9391]
[1740704852063,9.91640876,136.22,136.18,7.3485]
[1740704852263,9.91640876,136.22,136.11,5.9391]
[1740704852672,9.91640876,136.22,136.17,7.349]
[1740704852873,9.91640876,136.22,136.18,2.0556]
[1740704853075,0.04220592,136.21,136.19,0.04752497]
[1740704853276,7.38970592,136.21,136.19,0.04752497]
[1740704855973,0.04220592,136.21,136.19,0.04752497]
[1740704856175,7.3478,136.2,136.19,0.04752497]
[1740704858479,29.3678,136.2,136.19,2.497e-05]
[1740704860583,7.3478,136.2,136.19,2.497e-05]
[1740704865384,0.04220592,136.21,136.19,2.497e-05]
[1740704866285,7.38970592,136.21,136.19,2.497e-05]
[1740704867687,0.04220592,136.21,136.19,2.497e-05]
[1740704867882,39.66563505,136.26,136.19,2.497e-05]
[1740704868688,7.3458,136.24,136.2,7.3476]
[1740704869187,0.0475,136.23,136.19,2.497e-05]
[1740704869787,7.3478,136.2,136.19,2.497e-05]
[1740704871784,7.3473,136.21,136.19,2.497e-05]
[1740704872987,7.3478,136.2,136.19,2.497e-05]
[1740704873288,51.3878,136.2,136.19,2.497e-05]
[1740704873587,86.25293085,136.2,136.19,2.497e-05]
[1740704873788,84.9478,136.2,136.19,2.497e-05]
[1740704874386,86.25204233,136.2,136.19,2.497e-05]
[1740704875184,86.51589707,136.2,136.19,2.497e-05]
[1740704876291,234.94662558,136.2,136.19,2.497e-05]
[1740704876984,212.92662558,136.2,136.19,2.497e-05]
[1740704879382,7.3527,136.11,136.07,5.9643]
[1740704879791,112.89236038,136.2,136.07,5.9643]
[1740704879983,7.3533,136.1,136.07,5.9643]
[1740704880392,134.91236038,136.2,136.07,5.9643]
[1740704880690,7.3541,136.09,136.07,5.9643]
[1740704881092,7.40162497,136.09,136.07,6.01743859]
[1740704881486,0.04752497,136.09,136.07,6.01743859]
[1740704881790,74.40624672,136.2,136.07,6.01743859]
[1740704881980,7.3525,136.12,136.07,13.319]
[1740704882890,7.3525,136.12,136.08,0.05376306]
[1740704883589,7.3527,136.11,136.08,0.05376306]
[1740704883790,7.3527,136.11,136.07,5.9643]
[1740704883996,7.3527,136.11,136.08,0.05108473]
[1740704884897,7.3538,136.09,136.08,0.05108473]
[1740704885090,44.04,136.18,136.07,5.9643]
[1740704885284,44.04,136.18,136.07,6.01301469]
[1740704885592,44.04,136.18,136.11,0.05574878]
[1740704886390,44.04,136.18,135.96,40.34968727]
[1740704886391,22.02,136.12,135.96,40.34968727]
[1740704886595,33.56,136.12,135.99,1.9204]
[1740704886893,33.56,136.12,136.0,2.0376]
[1740704887289,7.3541,136.09,136.01,7.3578]
[1740704887496,33.56,136.12,136.01,7.3578]
[1740704887695,0.05469192,136.06,136.04,0.05337756]
[1740704887893,33.56,136.12,136.04,0.05337756]
[1740704888095,0.04642507,136.06,136.04,0.05337756]
[1740704888295,33.56,136.12,136.04,0.05337756]
[1740704888490,0.05574878,136.06,136.04,0.05337756]
[1740704888795,7.3546,136.08,136.04,0.05337756]
[1740704889194,0.04974601,136.09,136.05,7.3558]
[1740704889498,0.04974601,136.09,136.06,3.7821]
[1740704890095,61.73822828,136.18,136.06,3.7821]
[1740704890295,73.27822828,136.18,136.06,3.7821]
[1740704890595,7.3519,136.13,136.07,7.3544]
[1740704891097,7.3519,136.13,136.06,3.7821]
[1740704891397,7.3519,136.13,136.09,0.04703029]
[1740704891989,39.71822828,136.18,136.09,0.04703029]
[1740704892190,39.71822828,136.18,136.06,3.7821]
[1740704892392,39.71822828,136.18,136.12,0.05244134]
[1740704893000,11.54,136.19,136.12,0.05244134]
[1740704893394,7.3516,136.13,136.12,0.05244134]
[1740704895104,11.54,136.19,136.12,0.05244134]
[1740704895695,7.3516,136.13,136.12,0.05244134]
[1740704896599,11.54,136.19,136.12,0.05244134]
[1740704897396,7.3516,136.13,136.12,0.05244134]
[1740704899205,7.3512,136.14,136.12,0.05244134]
[1740704899803,33.56,136.2,136.12,0.05244134]
[1740704899997,33.56,136.2,136.12,9.2503]
[1740704900194,33.56,136.2,136.15,0.05059274]
[1740704900699,7.35,136.16,136.15,0.05059274]
[1740704901406,7.35,136.16,136.15,9.274e-05]
[1740704903104,29.37,136.16,136.15,9.274e-05]
[1740704907607,7.35,136.16,136.15,9.274e-05]
[1740704916719,0.05281992,136.17,136.15,9.274e-05]
[1740704916720,7.40241992,136.17,136.15,9.274e-05]
[1740704917318,7.35,136.16,136.15,9.274e-05]
[1740704920616,0.05281992,136.17,136.15,9.274e-05]
[1740704924230,0.05281992,136.17,136.15,7.35039274]
[1740704924425,0.05281992,136.17,136.15,9.274e-05]
[1740704924826,0.05281992,136.17,136.16,7.35]
[1740704925017,7.3474,136.21,136.15,9.274e-05]
[1740704925217,11.54,136.23,136.17,7.3492]
[1740704925724,11.54,136.23,136.11,1.9529]
[1740704925925,11.54,136.23,136.18,7.3488]
[1740704926224,7.3474,136.21,136.18,7.3488]
[1740704926527,63.75482828,136.24,136.19,0.05228194]
[1740704927127,24.0366,136.24,136.19,0.05228194]
[1740704927328,1.9666,136.24,136.19,0.05228194]
[1740704927529,231.95900199,136.25,136.19,0.05228194]
[1740704928122,7.3466,136.23,136.19,7.40038194]
[1740704928925,7.3466,136.23,136.19,0.05228194]
[1740704929236,7.3466,136.23,136.2,7.3478]
[1740704929633,7.3466,136.23,136.19,0.05228194]
[1740704930723,231.95900199,136.25,136.19,0.05228194]
[1740704930724,221.99,136.25,136.19,0.05228194]
[1740704931332,7.3477,136.21,136.19,0.05228194]
[1740704933638,199.92,136.25,136.19,0.05228194]
[1740704934139,7.3468,136.22,136.19,0.05228194]
[1740704935242,7.3468,136.22,136.19,7.40058194]
[1740704936238,7.3468,136.22,136.19,0.05228194]
[1740704937237,11.54,136.26,136.19,0.05228194]
[1740704937434,7.3473,136.21,136.19,0.05228194]
[1740704938335,7.3478,136.2,136.19,0.05228194]
[1740704938739,11.54,136.26,136.19,0.05228194]
[1740704938939,7.3473,136.21,136.19,0.05228194]
[1740704939140,11.54,136.26,136.19,0.05228194]
[1740704939843,33.61,136.26,136.19,0.05228194]
[1740704940544,11.54,136.26,136.19,0.05228194]
[1740704940740,1.8977,136.28,136.19,0.05228194]
[1740704940945,71.49476697,136.29,136.11,1.9529]
[1740704940946,71.49476697,136.29,136.14,14.7018]
[1740704941142,7.3447,136.26,136.22,7.39905938]
[1740704941341,71.49476697,136.29,136.22,7.39905938]
[1740704941735,71.49476697,136.29,136.22,0.05275938]
[1740704941939,93.56476697,136.29,136.22,0.05275938]
[1740704942136,7.3454,136.25,136.22,0.05275938]
[1740704942849,111.21299525,136.29,136.22,0.05275938]
[1740704943039,133.28299525,136.29,136.22,0.05275938]
[1740704943836,7.3462,136.23,136.22,0.05275938]
[1740704944240,7.3462,136.23,136.22,5.938e-05]
[1740704945450,29.4162,136.23,136.22,5.938e-05]
[1740704945649,40.9562,136.23,136.22,5.938e-05]
[1740704946644,18.8862,136.23,136.22,5.938e-05]
[1740704947957,11.54,136.23,136.22,5.938e-05]
[1740704949253,18.8862,136.23,136.22,5.938e-05]
[1740704952455,40.9562,136.23,136.22,5.938e-05]
[1740704953053,18.8862,136.23,136.22,5.938e-05]
[1740704957757,7.3462,136.23,136.22,5.938e-05]
[1740704959056,7.39583989,136.24,136.22,5.938e-05]
[1740704959660,0.05003989,136.24,136.22,7.34675938]
[1740704960259,7.39573989,136.24,136.22,5.938e-05]
[1740704961061,7.3453,136.25,136.22,5.938e-05]
[1740704961360,7.3453,136.25,136.22,3.92765938]
[1740704962260,9.96900199,136.27,136.22,3.92765938]
[1740704963358,7.3457,136.24,136.22,3.92765938]
[1740704963667,11.54,136.28,136.22,3.92765938]
[1740704963963,33.61,136.28,136.22,5.938e-05]
[1740704964153,1.4764,136.27,136.22,5.938e-05]
[1740704965460,7.3462,136.23,136.22,5.938e-05]
[1740704970264,41.19462828,136.27,136.22,5.938e-05]
[1740704970265,7.3459,136.24,136.22,5.938e-05]
[1740704970765,7.3462,136.23,136.22,5.938e-05]
[1740704972261,61.78822828,136.27,136.22,5.938e-05]
[1740704972564,7.3457,136.24,136.22,5.938e-05]
[1740704974666,44.13,136.24,136.13,18.64871676]
[1740704974870,44.13,136.21,136.13,18.64871676]
[1740704975066,22.07,136.19,136.13,18.64871676]
[1740704975371,7.3521,136.13,136.08,81.10157641]
[1740704975568,22.07,136.19,136.08,81.10157641]
[1740704975968,7.35,136.16,136.13,0.04762149]
[1740704976169,22.07,136.19,136.13,0.04762149]
[1740704976869,22.07,136.18,136.13,0.04762149]
[1740704977569,7.3511,136.14,136.13,0.04762149]
[1740704978866,22.07,136.19,136.13,0.04762149]
[1740704979560,7.3509,136.15,136.13,0.04762149]
[1740704980970,7.3501,136.16,136.13,0.04762149]
[1740704981571,7.3506,136.15,136.13,0.04762149]
[1740704982572,22.07,136.19,136.13,0.04762149]
[1740704982766,7.3511,136.14,136.13,0.04762149]
[1740704982968,199.78,136.22,136.13,0.04762149]
[1740704983170,199.78,136.22,136.1,11.54]
[1740704983470,7.3489,136.18,136.16,0.05251396]
[1740704983671,41.71922828,136.23,136.16,0.05251396]
[1740704983866,7.3486,136.19,136.16,0.05251396]
[1740704984063,41.71922828,136.23,136.16,0.05251396]
[1740704984470,7.348,136.2,136.16,0.05251396]
[1740704985471,41.71922828,136.23,136.16,0.05251396]
[1740704985673,39.71822828,136.23,136.16,0.05251396]
[1740704986177,47.06452828,136.23,136.17,7.3493]
[1740704986372,7.3463,136.23,136.17,7.3493]
[1740704987569,0.70702561,136.25,136.16,0.05251396]
[1740704987875,7.3458,136.24,136.19,0.05160113]
[1740704988469,0.70702561,136.25,136.19,0.05160113]
[1740704989774,7.346,136.24,136.19,0.05160113]
[1740704989977,0.70702561,136.25,136.19,0.05160113]
[1740704990176,8.05242561,136.25,136.19,0.05160113]
[1740704992073,9.96900199,136.3,136.19,0.05160113]
[1740704992273,9.96900199,136.3,136.19,154.51855025]
[1740704992479,9.96900199,136.3,136.28,7.3432]
[1740704992870,9.96900199,136.3,136.28,0.04688359]
[1740704993176,9.96900199,136.3,136.28,7.39028359]
[1740704994184,22.07,136.35,136.28,0.04688359]
[1740704994378,7.3406,136.34,136.28,0.04688359]
[1740704994785,22.07,136.35,136.28,0.04688359]
[1740704994979,22.07,136.34,136.28,0.04688359]
[1740704995174,22.07,136.34,136.2,5.7753]
[1740704995479,78.65922828,136.37,136.2,5.7753]
[1740704995480,29.4121,136.31,136.2,5.7753]
[1740704995677,29.4121,136.31,136.26,0.05263702]
[1740704996278,7.3421,136.31,136.26,0.05263702]
[1740704996581,29.4121,136.31,136.26,0.05263702]
[1740704996774,7.3421,136.31,136.26,0.05263702]
[1740704996978,78.65922828,136.37,136.26,0.05263702]
[1740704997280,1.30418882,136.36,136.3,0.05036087]
[1740704997479,23.37418882,136.36,136.27,7.3439]
[1740704997679,7.3411,136.33,136.32,0.05641985]
[1740704999081,29.4111,136.33,136.32,0.05641985]
[1740705000782,7.3429,136.3,136.2,5.7753]
[1740705000980,44.13,136.36,136.24,7.3454]
[1740705001384,7.3436,136.28,136.23,7.3461]
[1740705001777,22.07,136.34,136.23,7.3461]
[1740705001983,0.04953027,136.27,136.24,7.39912305]
[1740705002184,7.3431,136.29,136.24,7.3456]
[1740705002379,0.05143503,136.27,136.24,7.39923163]
[1740705002986,0.05143503,136.27,136.25,7.345]
[1740705003185,39.71822828,136.4,136.25,154.51855025]
[1740705003388,39.71822828,136.4,136.26,3.9301]
[1740705003686,39.71822828,136.4,136.34,7.3401]
[1740705004077,39.71822828,136.4,136.34,7.3399]
[1740705004282,39.71822828,136.4,136.36,0.04755125]
[1740705004784,7.3372,136.4,136.36,0.04755125]
[1740705005688,29.4067,136.41,136.36,0.04755125]
[1740705006489,22.07,136.41,136.36,0.04755125]
[1740705006788,3.8464,136.42,136.36,7.38635125]
[1740705007088,3.8464,136.42,136.36,0.04755125]
[1740705008186,22.07,136.46,136.36,0.04755125]
[1740705008387,7.3345,136.45,136.27,3.37178964]
[1740705008586,7.3345,136.45,136.4,0.0561707]
[1740705008788,7.3345,136.45,136.41,0.05374088]
[1740705009088,7.3345,136.45,136.42,0.0537871]
[1740705009288,37.4494,136.46,136.33,5.9354]
[1740705009586,37.4494,136.46,136.39,7.3372]
[1740705009587,7.3349,136.44,136.39,7.3372]
[1740705009889,7.3349,136.44,136.38,0.05597679]
[1740705010285,22.07,136.44,136.38,0.05597679]
[1740705010884,7.3369,136.41,136.38,0.05597679]
[1740705011186,22.07,136.41,136.38,0.05597679]
[1740705011387,7.3367,136.41,136.38,0.05597679]
[1740705011589,22.07,136.43,136.38,0.05597679]
[1740705012088,7.3365,136.42,136.38,0.05597679]
[1740705013587,22.07,136.45,136.38,0.05597679]
[1740705013791,7.3358,136.43,136.38,0.05597679]
[1740705014186,7.3361,136.42,136.38,0.05597679]
[1740705015892,7.3366,136.41,136.38,0.05597679]
[1740705016092,22.07,136.45,136.38,0.05597679]
[1740705016988,7.3374,136.4,136.38,0.05597679]
[1740705018093,3.8594,136.46,136.38,0.05597679]
[1740705018297,220.74922629,136.55,136.38,0.05597679]
[1740705018592,220.74922629,136.55,136.44,0.04673261]
[1740705018593,4.86139076,136.53,136.44,0.04673261]
[1740705018798,7.332,136.5,136.45,7.334]
[1740705018999,4.86139076,136.53,136.47,0.04785061]
[1740705019198,26.93139076,136.53,136.36,11.56]
[1740705019497,4.86139076,136.53,136.49,0.05301619]
[1740705019798,9.96900199,136.52,136.5,0.05004383]
[1740705020096,9.96900199,136.52,136.36,166.07855025]
[1740705020597,9.96900199,136.52,136.45,7.3339]
[1740705020996,17.29980199,136.52,136.47,0.05335939]
[1740705021399,9.96900199,136.52,136.47,0.05335939]
[1740705022301,9.96900199,136.52,136.49,7.3321]
[1740705023302,9.96900199,136.52,136.51,7.3311]
[1740705024097,7.3275,136.58,136.52,7.3306]
[1740705024494,7.3275,136.58,136.54,0.05627754]
[1740705025402,82.16324215,136.61,136.54,0.05627754]
[1740705025596,56.64232828,136.62,136.54,0.05627754]
[1740705025904,22.07,136.61,136.54,0.05627754]
[1740705026403,7.3269,136.59,136.54,0.05627754]
[1740705026600,22.07,136.61,136.54,0.05627754]
[1740705026998,7.3277,136.58,136.54,0.05627754]
[1740705029611,38.9941,136.62,136.54,0.05627754]
[1740705029999,38.9941,136.62,136.54,7.38547754]
[1740705030201,38.9941,136.62,136.54,0.05627754]
[1740705030905,7.3285,136.56,136.54,0.05627754]
[1740705031905,38.9941,136.62,136.54,0.05627754]
[1740705032108,16.9241,136.62,136.54,0.05627754]
[1740705032307,16.9241,136.62,136.54,7.38547754]
[1740705032804,16.9241,136.62,136.54,0.05627754]
[1740705033110,38.9941,136.62,136.54,0.05627754]
[1740705033505,7.3287,136.56,136.54,0.05627754]
[1740705033812,54.36152828,136.69,136.54,0.05627754]
[1740705033813,22.07,136.67,136.54,0.05627754]
[1740705034009,7.3239,136.65,136.58,7.3271]
[1740705034205,22.07,136.67,136.59,0.04924676]
[1740705034608,7.3248,136.63,136.59,0.04924676]
[1740705035708,7.3245,136.64,136.59,0.04924676]
[1740705036111,22.07,136.67,136.59,0.04924676]
[1740705036311,7.3249,136.63,136.59,0.04924676]
[1740705037612,7.3243,136.64,136.59,7.37604676]
[1740705038012,7.3243,136.64,136.59,0.04924676]
[1740705038513,22.07,136.67,136.59,0.04924676]
[1740705039210,22.07,136.63,136.59,0.04924676]
[1740705039414,33.63,136.63,136.59,0.04924676]
[1740705039615,1.886,136.62,136.59,0.04924676]
[1740705039815,7.3263,136.6,136.59,0.04924676]
[1740705040419,1.886,136.62,136.52,5.8548]
[1740705040717,3.7854,136.62,136.52,5.8548]
[1740705040917,25.8554,136.62,136.52,5.8548]
[1740705041412,25.8554,136.62,136.56,0.0471978]
[1740705041617,0.0521968,136.58,136.56,0.0471978]
[1740705042019,7.3279,136.57,136.56,0.0471978]
[1740705042218,0.0521968,136.58,136.48,3.8215]
[1740705042517,25.8554,136.62,136.48,5.7701]
[1740705043217,7.3296,136.54,136.48,13.1027]
[1740705043722,0.05147167,136.52,136.5,0.05141552]
[1740705044913,7.3286,136.56,136.5,0.05141552]
[1740705045115,27.2183,136.62,136.48,5.7701]
[1740705045616,49.2783,136.62,136.48,3.8504]
[1740705045820,44.13,136.6,136.42,193.0]
[1740705046020,7.3327,136.49,136.43,11.2127]
[1740705046421,0.05160881,136.47,136.45,0.05355901]
[1740705047625,0.05160881,136.47,136.45,7.38795901]
[1740705047820,11.58,136.54,136.45,0.05355901]
[1740705048020,199.28,136.61,136.43,3.8776]
[1740705048222,199.28,136.61,136.49,7.3317]
[1740705048223,7.3287,136.56,136.49,7.3317]
[1740705048521,7.3287,136.56,136.43,3.8776]
[1740705048721,7.328,136.57,136.44,11.56]
[1740705048923,11.58,136.6,136.44,11.56]
[1740705049126,11.58,136.6,136.49,0.04994459]
[1740705049420,7.328,136.57,136.51,7.3308]
[1740705049620,7.328,136.57,136.53,0.05087628]
[1740705050825,7.3276,136.58,136.53,0.05087628]
[1740705051219,33.65,136.6,136.53,0.05087628]
[1740705052423,7.3295,136.55,136.53,0.05087628]
[1740705052725,33.65,136.6,136.53,0.05087628]
[1740705054018,33.65,136.6,136.45,1.9509]
[1740705054323,7.3304,136.53,136.46,7.3338]
[1740705054520,7.3304,136.53,136.45,1.9509]
[1740705054724,126.33607256,136.6,136.45,1.9509]
[1740705054916,7.3291,136.55,136.48,7.3324]
[1740705055223,0.05312332,136.54,136.51,0.04962612]
[1740705055423,7.38302332,136.54,136.51,0.04962612]
[1740705055817,0.05312332,136.54,136.51,0.04962612]
[1740705057828,7.3304,136.53,136.51,0.04962612]
[1740705058624,0.05312332,136.54,136.51,0.04962612]
[1740705060223,7.38272332,136.54,136.51,0.04962612]
[1740705060419,0.05312332,136.54,136.51,0.04962612]
[1740705062025,0.05312332,136.54,136.52,7.3303]
[1740705063124,0.05312332,136.54,136.51,0.04962612]
[1740705063827,7.38262332,136.54,136.51,0.04962612]
[1740705064329,7.38262332,136.54,136.51,7.38042612]
[1740705064525,0.05312332,136.54,136.51,0.04962612]
[1740705064824,39.71822828,136.61,136.51,0.04962612]
[1740705065127,7.3275,136.58,136.47,204.54]
[1740705065524,7.3275,136.58,136.55,7.329]
[1740705065726,7.3267,136.6,136.47,219.2064]
[1740705065928,39.71822828,136.63,136.48,18.65043242]
[1740705066128,39.71822828,136.63,136.57,7.3274]
[1740705066527,39.71822828,136.63,136.59,0.05221204]
[1740705066723,39.71822828,136.63,136.58,7.3272]
[1740705066925,39.71822828,136.63,136.6,0.04781547]
[1740705067124,7.3256,136.62,136.6,0.04781547]
[1740705067525,39.71822828,136.63,136.6,0.04781547]
[1740705067926,39.71822828,136.63,136.61,7.3258]
[1740705068328,39.71822828,136.63,136.6,0.04781547]
[1740705068623,30.46412828,136.69,136.6,0.04781547]
[1740705068826,30.46412828,136.69,136.55,196.8353]
[1740705069022,30.46412828,136.69,136.64,7.3241]
[1740705069222,30.46412828,136.69,136.63,0.05376598]
[1740705069223,22.07,136.68,136.63,0.05376598]
[1740705069524,7.3242,136.64,136.63,0.05376598]
[1740705069927,7.3238,136.65,136.63,0.05376598]
[1740705070230,1.4188,136.68,136.63,0.05376598]
[1740705070934,7.3237,136.65,136.63,0.05376598]
[1740705071832,7.3242,136.64,136.63,0.05376598]
[1740705072433,7.3242,136.64,136.63,6.598e-05]
[1740705074028,11.2383,136.64,136.63,6.598e-05]
[1740705079635,22.8383,136.64,136.63,6.598e-05]
[1740705080139,44.9083,136.64,136.63,6.598e-05]
[1740705081144,22.8383,136.64,136.63,6.598e-05]
[1740705083039,44.9083,136.64,136.63,6.598e-05]
[1740705085335,66.8683,136.64,136.63,6.598e-05]
[1740705085540,88.9283,136.64,136.63,6.598e-05]
[1740705085937,88.9283,136.64,136.45,3.7724]
[1740705085938,7.3321,136.5,136.45,3.7724]
[1740705086143,33.65,136.56,136.45,3.7724]
[1740705086345,22.07,136.54,136.45,3.7724]
[1740705087140,7.3317,136.5,136.48,0.05587667]
[1740705087843,7.37811291,136.51,136.48,0.05587667]
[1740705088039,0.04681291,136.51,136.48,0.05587667]
[1740705088543,7.37811291,136.51,136.48,0.05587667]
[1740705089746,0.04681291,136.51,136.48,0.05587667]
[1740705090451,7.37811291,136.51,136.48,0.05587667]
[1740705091246,0.04681291,136.51,136.48,0.05587667]
[1740705093644,0.04681291,136.51,136.48,7.38827667]
[1740705094752,0.04681291,136.51,136.48,0.05587667]
[1740705094953,11.62,136.57,136.48,0.05587667]
[1740705095148,11.62,136.57,136.44,204.62]
[1740705095755,7.3291,136.55,136.5,7.3313]
[1740705096054,11.62,136.59,136.44,204.62]
[1740705096251,11.62,136.59,136.51,0.05011837]
[1740705096647,7.3289,136.56,136.51,0.05011837]
[1740705096846,11.62,136.59,136.51,0.05011837]
[1740705097251,7.3288,136.56,136.51,7.38091837]
[1740705097455,11.62,136.59,136.51,0.05011837]
[1740705097651,212.2546,136.6,136.55,7.329]
[1740705097959,177.40269985,136.62,136.44,11.62]
[1740705098255,7.3258,136.61,136.56,7.3281]
[1740705098758,7.3258,136.61,136.57,0.05409537]
[1740705099057,7.3258,136.61,136.57,7.38199537]
[1740705099254,7.3258,136.61,136.57,0.05409537]
[1740705101758,75.64760344,136.62,136.57,0.05409537]
[1740705102560,68.32220344,136.62,136.57,0.05409537]
[1740705103062,7.3261,136.61,136.57,0.05409537]
[1740705103359,68.32220344,136.62,136.57,0.05409537]
[1740705103753,90.39220344,136.62,136.57,0.05409537]
[1740705103951,90.39220344,136.62,136.47,3.9206]
[1740705104152,7.3296,136.54,136.48,7.3324]
[1740705104561,11.6,136.57,136.47,3.9206]
[1740705104763,7.3312,136.51,136.47,3.9206]
[1740705105164,0.04802611,136.5,136.48,0.05609583]
[1740705105359,7.3322,136.49,136.48,0.05609583]
[1740705105762,7.37926079,136.5,136.48,0.05609583]
[1740705105964,0.04746079,136.5,136.48,0.05609583]
[1740705107962,1.9371,136.56,136.48,0.05609583]
[1740705108366,11.6,136.58,136.51,7.3307]
[1740705108562,11.6,136.58,136.49,3.9866]
[1740705109065,11.6,136.58,136.54,7.3293]
[1740705109367,31.62982629,136.6,136.52,0.04694974]
[1740705109761,31.62982629,136.6,136.54,7.3292]
[1740705110170,31.62982629,136.6,136.56,0.05037877]
[1740705110370,1.8806,136.6,136.56,0.05037877]
[1740705111269,9.2074,136.6,136.56,0.05037877]
[1740705111670,1.8806,136.6,136.56,0.05037877]
[1740705112668,9.207,136.6,136.56,0.05037877]
[1740705113273,1.8806,136.6,136.56,0.05037877]
[1740705113866,7.3272,136.59,136.56,0.05037877]
[1740705114071,1.8806,136.6,136.56,0.05037877]
[1740705114475,7.3269,136.59,136.56,0.05037877]
[1740705115175,9.2071,136.6,136.56,0.05037877]
[1740705115874,1.8806,136.6,136.56,0.05037877]
[1740705117675,9.2069,136.6,136.56,0.05037877]
[1740705117870,1.8806,136.6,136.56,0.05037877]
[1740705118078,1.8806,136.6,136.49,3.9866]
[1740705118266,7.3293,136.55,136.46,1.9894]
[1740705118467,1.8806,136.6,136.49,7.3319]